[Event "Titled Tuesday Blitz January 18 2022"]
[White "Artem_Koval"]
[Black "Goryachkina, Aleksandra"]
[BlackFideId "4147103"]
[WhiteElo "2491"]
[BlackElo "2426"]
[Result "1/2-1/2"]
[Round "07"]
[TimeControl "180+1"]
[Date "2022.01.18"]
[WhiteClock "0:00:38"]
[BlackClock "0:00:16"]

1. d4 {[%clk 0:03:00]}  d5 {[%clk 0:02:59]} 2. Bf4 {[%clk 0:02:59]}  Nf6 {[%clk 0:02:57]} 3. e3 {[%clk 0:02:59]}  Bf5 {[%clk 0:02:56]} 4. c4 {[%clk 0:02:58]}  e6 {[%clk 0:02:56]} 5. Nc3 {[%clk 0:02:57]}  Bb4 {[%clk 0:02:54]} 6. Nf3 {[%clk 0:02:49]}  O-O {[%clk 0:02:52]} 7. Bd3 {[%clk 0:02:45]}  Ne4 {[%clk 0:02:30]} 8. Qc2 {[%clk 0:02:44]}  c5 {[%clk 0:02:23]} 9. O-O {[%clk 0:02:40]}  Bxc3 {[%clk 0:02:20]} 10. bxc3 {[%clk 0:02:40]}  Nc6 {[%clk 0:02:20]} 11. cxd5 {[%clk 0:02:32]}  exd5 {[%clk 0:02:20]} 12. Ne5 {[%clk 0:02:24]}  Nxe5 {[%clk 0:02:16]} 13. Bxe5 {[%clk 0:02:22]}  c4 {[%clk 0:02:13]} 14. Bxe4 {[%clk 0:02:22]}  Bxe4 {[%clk 0:02:12]} 15. Qb2 {[%clk 0:02:20]}  Qd7 {[%clk 0:02:09]} 16. a4 {[%clk 0:02:14]}  a5 {[%clk 0:02:03]} 17. Rfe1 {[%clk 0:01:54]}  Ra6 {[%clk 0:02:01]} 18. f3 {[%clk 0:01:49]}  Bd3 {[%clk 0:02:01]} 19. e4 {[%clk 0:01:48]}  Re6 {[%clk 0:01:57]} 20. Qb5 {[%clk 0:01:40]}  Qxb5 {[%clk 0:01:49]} 21. axb5 {[%clk 0:01:41]}  dxe4 {[%clk 0:01:46]} 22. fxe4 {[%clk 0:01:42]}  b6 {[%clk 0:01:43]} 23. Bc7 {[%clk 0:01:39]}  Bxe4 {[%clk 0:01:29]} 24. Bxb6 {[%clk 0:01:36]}  Rxb6 {[%clk 0:01:22]} 25. Rxe4 {[%clk 0:01:36]}  Rxb5 {[%clk 0:01:23]} 26. Ra4 {[%clk 0:01:30]}  f5 {[%clk 0:01:13]} 27. Re7 {[%clk 0:01:27]}  Rc8 {[%clk 0:01:10]} 28. Ra7 {[%clk 0:01:26]}  Rb1+ {[%clk 0:01:03]} 29. Kf2 {[%clk 0:01:25]}  Rb2+ {[%clk 0:01:03]} 30. Kg3 {[%clk 0:01:15]}  Rb3 {[%clk 0:00:54]} 31. Kf4 {[%clk 0:01:16]}  Rxc3 {[%clk 0:00:52]} 32. R4xa5 {[%clk 0:01:13]}  Rc2 {[%clk 0:00:50]} 33. Rc5 {[%clk 0:01:07]}  Rd8 {[%clk 0:00:41]} 34. Kf3 {[%clk 0:00:45]}  Rc3+ {[%clk 0:00:28]} 35. Kf4 {[%clk 0:00:45]}  Rc2 {[%clk 0:00:15]} 36. Kf3 {[%clk 0:00:44]}  Rc3+ {[%clk 0:00:16]} 37. Kf4 {[%clk 0:00:38]}  Rc2 {[%clk 0:00:16]} 1/2-1/2


[Site "https://www.chess.com"]

[Event "Titled Tuesday Blitz January 18 2022"]
[White "Belyakov, Bogdan"]
[Black "Lehtosaari, Mauri"]
[WhiteFideId "24104795"]
[BlackFideId "501999"]
[WhiteElo "2407"]
[BlackElo "2492"]
[Result "1-0"]
[Round "07"]
[TimeControl "180+1"]
[Date "2022.01.18"]
[WhiteClock "0:01:19"]
[BlackClock "0:00:13"]

1. e4 {[%clk 0:03:00]}  c5 {[%clk 0:02:59]} 2. c3 {[%clk 0:03:00]}  e6 {[%clk 0:02:58]} 3. d4 {[%clk 0:03:01]}  Nf6 {[%clk 0:02:58]} 4. e5 {[%clk 0:03:01]}  Nd5 {[%clk 0:02:58]} 5. Nf3 {[%clk 0:03:02]}  Nc6 {[%clk 0:02:57]} 6. c4 {[%clk 0:02:59]}  Nb6 {[%clk 0:02:55]} 7. d5 {[%clk 0:02:56]}  Ne7 {[%clk 0:02:52]} 8. d6 {[%clk 0:02:54]}  Ng6 {[%clk 0:02:52]} 9. Nc3 {[%clk 0:02:43]}  a6 {[%clk 0:02:46]} 10. Bd3 {[%clk 0:02:36]}  f6 {[%clk 0:02:44]} 11. Bxg6+ {[%clk 0:02:36]}  hxg6 {[%clk 0:02:44]} 12. Qd3 {[%clk 0:02:35]}  Kf7 {[%clk 0:02:44]} 13. O-O {[%clk 0:02:29]}  Rb8 {[%clk 0:02:42]} 14. b3 {[%clk 0:02:22]}  Na8 {[%clk 0:02:42]} 15. Bb2 {[%clk 0:02:21]}  b6 {[%clk 0:02:41]} 16. Ne4 {[%clk 0:02:09]}  f5 {[%clk 0:02:31]} 17. Neg5+ {[%clk 0:02:07]}  Kg8 {[%clk 0:02:31]} 18. a4 {[%clk 0:02:00]}  Bb7 {[%clk 0:02:29]} 19. Qe3 {[%clk 0:02:00]}  Qc8 {[%clk 0:02:20]} 20. Qf4 {[%clk 0:01:57]}  Qc6 {[%clk 0:02:15]} 21. Rfe1 {[%clk 0:01:52]}  Re8 {[%clk 0:02:01]} 22. Qg3 {[%clk 0:01:44]}  b5 {[%clk 0:01:47]} 23. axb5 {[%clk 0:01:43]}  axb5 {[%clk 0:01:48]} 24. Nh3 {[%clk 0:01:44]}  Rh6 {[%clk 0:01:41]} 25. Nf4 {[%clk 0:01:43]}  Kf7 {[%clk 0:01:34]} 26. Nh4 {[%clk 0:01:40]}  Rxh4 {[%clk 0:01:08]} 27. Qxh4 {[%clk 0:01:40]}  Nb6 {[%clk 0:00:55]} 28. Qg5 {[%clk 0:01:38]}  Kg8 {[%clk 0:00:53]} 29. Qxg6 {[%clk 0:01:38]}  Ra8 {[%clk 0:00:52]} 30. Nh5 {[%clk 0:01:28]}  Kh8 {[%clk 0:00:47]} 31. Rxa8 {[%clk 0:01:25]}  Bxa8 {[%clk 0:00:47]} 32. Re3 {[%clk 0:01:25]}  bxc4 {[%clk 0:00:18]} 33. Rh3 {[%clk 0:01:24]}  Qxg2+ {[%clk 0:00:14]} 34. Qxg2 {[%clk 0:01:25]}  Bxg2 {[%clk 0:00:15]} 35. Kxg2 {[%clk 0:01:26]}  g6 {[%clk 0:00:13]} 36. Nf6+ {[%clk 0:01:19]}  Kg7 {[%clk 0:00:13]} 37. Rh7# {[%clk 0:01:19]} 1-0


[Site "https://www.chess.com"]

[Event "Titled Tuesday Blitz January 18 2022"]
[White "Bluebaum, Matthias"]
[Black "Xiong, Jeffery"]
[WhiteFideId "24651516"]
[BlackFideId "2047640"]
[WhiteElo "2909"]
[BlackElo "3030"]
[Result "0-1"]
[Round "07"]
[TimeControl "180+1"]
[Date "2022.01.18"]
[WhiteClock "0:00:09"]
[BlackClock "0:00:08"]

1. d4 {[%clk 0:03:00]}  d5 {[%clk 0:02:57]} 2. c4 {[%clk 0:03:00]}  c6 {[%clk 0:02:57]} 3. Nc3 {[%clk 0:03:01]}  Nf6 {[%clk 0:02:56]} 4. Nf3 {[%clk 0:03:01]}  e6 {[%clk 0:02:56]} 5. Qc2 {[%clk 0:03:01]}  dxc4 {[%clk 0:02:52]} 6. e4 {[%clk 0:03:01]}  b5 {[%clk 0:02:51]} 7. Be2 {[%clk 0:03:02]}  Bb7 {[%clk 0:02:50]} 8. O-O {[%clk 0:03:02]}  Na6 {[%clk 0:02:49]} 9. a3 {[%clk 0:03:00]}  Nc7 {[%clk 0:02:47]} 10. Bf4 {[%clk 0:02:55]}  Be7 {[%clk 0:02:45]} 11. b3 {[%clk 0:02:54]}  cxb3 {[%clk 0:02:44]} 12. Qxb3 {[%clk 0:02:55]}  a6 {[%clk 0:02:44]} 13. Rac1 {[%clk 0:02:55]}  O-O {[%clk 0:02:43]} 14. Rfd1 {[%clk 0:02:55]}  Rc8 {[%clk 0:02:40]} 15. h3 {[%clk 0:02:55]}  Nd7 {[%clk 0:02:39]} 16. Bg3 {[%clk 0:02:17]}  c5 {[%clk 0:02:36]} 17. d5 {[%clk 0:02:17]}  exd5 {[%clk 0:02:36]} 18. exd5 {[%clk 0:02:18]}  c4 {[%clk 0:02:33]} 19. Qa2 {[%clk 0:02:03]}  Bf6 {[%clk 0:02:31]} 20. Nd4 {[%clk 0:01:33]}  Nc5 {[%clk 0:02:19]} 21. Nc6 {[%clk 0:01:31]}  Bxc6 {[%clk 0:02:08]} 22. dxc6 {[%clk 0:01:31]}  Qe8 {[%clk 0:02:09]} 23. Bf3 {[%clk 0:01:29]}  Nd3 {[%clk 0:02:06]} 24. Rxd3 {[%clk 0:01:09]}  cxd3 {[%clk 0:02:06]} 25. Ne4 {[%clk 0:01:10]}  Qe6 {[%clk 0:01:52]} 26. Qd2 {[%clk 0:01:10]}  Rfd8 {[%clk 0:01:41]} 27. Nc5 {[%clk 0:01:10]}  Qe7 {[%clk 0:01:36]} 28. Nb7 {[%clk 0:00:45]}  Bg5 {[%clk 0:01:33]} 29. Bf4 {[%clk 0:00:46]}  Bxf4 {[%clk 0:01:32]} 30. Qxf4 {[%clk 0:00:47]}  d2 {[%clk 0:01:18]} 31. Rd1 {[%clk 0:00:47]}  Rd3 {[%clk 0:01:18]} 32. Qf5 {[%clk 0:00:39]}  Rdd8 {[%clk 0:01:09]} 33. Nxd8 {[%clk 0:00:39]}  Rxd8 {[%clk 0:01:10]} 34. Qf4 {[%clk 0:00:36]}  Qd6 {[%clk 0:01:06]} 35. Qe3 {[%clk 0:00:35]}  g6 {[%clk 0:00:59]} 36. h4 {[%clk 0:00:36]}  Ne6 {[%clk 0:00:56]} 37. h5 {[%clk 0:00:35]}  Qd4 {[%clk 0:00:55]} 38. h6 {[%clk 0:00:31]}  Qxe3 {[%clk 0:00:51]} 39. fxe3 {[%clk 0:00:32]}  Kf8 {[%clk 0:00:52]} 40. Kf2 {[%clk 0:00:30]}  Ke7 {[%clk 0:00:49]} 41. Ke2 {[%clk 0:00:30]}  Rd6 {[%clk 0:00:38]} 42. g3 {[%clk 0:00:20]}  Nc5 {[%clk 0:00:17]} 43. Rxd2 {[%clk 0:00:19]}  Rxd2+ {[%clk 0:00:17]} 44. Kxd2 {[%clk 0:00:20]}  Kd6 {[%clk 0:00:16]} 45. Kc3 {[%clk 0:00:21]}  a5 {[%clk 0:00:14]} 46. Kc2 {[%clk 0:00:15]}  Ne6 {[%clk 0:00:12]} 47. Kc3 {[%clk 0:00:13]}  Nd8 {[%clk 0:00:12]} 48. Be2 {[%clk 0:00:08]}  Kxc6 {[%clk 0:00:11]} 49. Kd4 {[%clk 0:00:09]}  f6 {[%clk 0:00:09]} 50. g4 {[%clk 0:00:08]}  Nf7 {[%clk 0:00:09]} 51. Bd1 {[%clk 0:00:08]}  Nxh6 {[%clk 0:00:09]} 52. e4 {[%clk 0:00:07]}  Nf7 {[%clk 0:00:09]} 53. Bb3 {[%clk 0:00:06]}  Ne5 {[%clk 0:00:08]} 54. Ke3 {[%clk 0:00:06]}  Nxg4+ {[%clk 0:00:08]} 55. Kf4 {[%clk 0:00:07]}  Ne5 {[%clk 0:00:08]} 56. Bd5+ {[%clk 0:00:08]}  Kc5 {[%clk 0:00:08]} 57. Bg8 {[%clk 0:00:09]}  b4 {[%clk 0:00:08]} 0-1


[Site "https://www.chess.com"]

[Event "Titled Tuesday Blitz January 18 2022"]
[White "Cherniaiev, Tykhon"]
[Black "Corrales Jimenez, Fidel"]
[WhiteFideId "14182360"]
[BlackFideId "3506690"]
[WhiteElo "2289"]
[BlackElo "2541"]
[Result "0-1"]
[Round "07"]
[TimeControl "180+1"]
[Date "2022.01.18"]
[WhiteClock "0:00:08"]
[BlackClock "0:00:15"]

1. Nf3 {[%clk 0:03:00]}  c5 {[%clk 0:02:59]} 2. c4 {[%clk 0:03:00]}  Nc6 {[%clk 0:02:59]} 3. b3 {[%clk 0:03:00]}  Nf6 {[%clk 0:02:56]} 4. Bb2 {[%clk 0:03:00]}  g6 {[%clk 0:02:56]} 5. g3 {[%clk 0:03:00]}  Bg7 {[%clk 0:02:56]} 6. Bg2 {[%clk 0:03:01]}  O-O {[%clk 0:02:57]} 7. O-O {[%clk 0:03:02]}  d6 {[%clk 0:02:56]} 8. d4 {[%clk 0:03:01]}  Bf5 {[%clk 0:02:52]} 9. Nc3 {[%clk 0:02:49]}  Ne4 {[%clk 0:02:52]} 10. Nxe4 {[%clk 0:02:41]}  Bxe4 {[%clk 0:02:53]} 11. e3 {[%clk 0:02:41]}  a5 {[%clk 0:02:46]} 12. Qd2 {[%clk 0:02:35]}  a4 {[%clk 0:02:46]} 13. d5 {[%clk 0:02:31]}  Bxb2 {[%clk 0:02:41]} 14. Qxb2 {[%clk 0:02:32]}  a3 {[%clk 0:02:32]} 15. Qc3 {[%clk 0:02:31]}  Nb4 {[%clk 0:02:29]} 16. Nd2 {[%clk 0:02:28]}  Bxg2 {[%clk 0:02:27]} 17. Kxg2 {[%clk 0:02:29]}  b5 {[%clk 0:02:19]} 18. e4 {[%clk 0:02:18]}  Qd7 {[%clk 0:02:19]} 19. h4 {[%clk 0:02:16]}  e6 {[%clk 0:02:13]} 20. h5 {[%clk 0:02:11]}  exd5 {[%clk 0:02:13]} 21. cxd5 {[%clk 0:02:03]}  Rae8 {[%clk 0:02:12]} 22. Rh1 {[%clk 0:01:56]}  g5 {[%clk 0:02:12]} 23. f4 {[%clk 0:01:15]}  gxf4 {[%clk 0:02:10]} 24. Rh4 {[%clk 0:00:53]}  f5 {[%clk 0:02:03]} 25. Rxf4 {[%clk 0:00:29]}  Qg7 {[%clk 0:01:59]} 26. Qc1 {[%clk 0:00:17]}  fxe4 {[%clk 0:01:58]} 27. Nxe4 {[%clk 0:00:17]}  Qb2+ {[%clk 0:01:51]} 28. Kf3 {[%clk 0:00:06]}  Qxc1 {[%clk 0:01:48]} 29. Rxc1 {[%clk 0:00:07]}  Nd3 {[%clk 0:01:48]} 30. Rg1 {[%clk 0:00:06]}  Nxf4 {[%clk 0:00:52]} 31. gxf4+ {[%clk 0:00:07]}  Kh8 {[%clk 0:00:52]} 32. Nxd6 {[%clk 0:00:08]}  Rd8 {[%clk 0:00:53]} 33. Nxb5 {[%clk 0:00:08]}  Rxd5 {[%clk 0:00:53]} 34. Nxa3 {[%clk 0:00:06]}  Rxh5 {[%clk 0:00:53]} 35. Nc4 {[%clk 0:00:06]}  Rh4 {[%clk 0:00:51]} 36. Rg4 {[%clk 0:00:05]}  Rxg4 {[%clk 0:00:51]} 37. Kxg4 {[%clk 0:00:06]}  Rg8+ {[%clk 0:00:51]} 38. Kf3 {[%clk 0:00:05]}  h5 {[%clk 0:00:50]} 39. Ne5 {[%clk 0:00:04]}  h4 {[%clk 0:00:48]} 40. Nf7+ {[%clk 0:00:05]}  Kg7 {[%clk 0:00:48]} 41. Ng5 {[%clk 0:00:05]}  Kg6 {[%clk 0:00:34]} 42. Kg4 {[%clk 0:00:06]}  Rh8 {[%clk 0:00:35]} 43. Nh3 {[%clk 0:00:02]}  Kf6 {[%clk 0:00:34]} 44. Nf2 {[%clk 0:00:03]}  Ke6 {[%clk 0:00:34]} 45. Nh3 {[%clk 0:00:02]}  Rg8+ {[%clk 0:00:29]} 46. Ng5+ {[%clk 0:00:02]}  Kd5 {[%clk 0:00:30]} 47. Kxh4 {[%clk 0:00:02]}  Ra8 {[%clk 0:00:29]} 48. Kg4 {[%clk 0:00:02]}  Rxa2 {[%clk 0:00:28]} 49. f5 {[%clk 0:00:03]}  Ke5 {[%clk 0:00:23]} 50. Nf3+ {[%clk 0:00:03]}  Kf6 {[%clk 0:00:22]} 51. Kf4 {[%clk 0:00:03]}  Rb2 {[%clk 0:00:20]} 52. Ne5 {[%clk 0:00:04]}  Rc2 {[%clk 0:00:17]} 53. Ng4+ {[%clk 0:00:03]}  Ke7 {[%clk 0:00:17]} 54. Kg5 {[%clk 0:00:04]}  Rd2 {[%clk 0:00:15]} 55. f6+ {[%clk 0:00:04]}  Ke6 {[%clk 0:00:15]} 56. Kg6 {[%clk 0:00:02]}  Rg2 {[%clk 0:00:16]} 57. Kg5 {[%clk 0:00:03]}  Rg3 {[%clk 0:00:16]} 58. Kf4 {[%clk 0:00:02]}  Rxb3 {[%clk 0:00:16]} 59. Ne5 {[%clk 0:00:02]}  Rb4+ {[%clk 0:00:16]} 60. Kg5 {[%clk 0:00:02]}  Kxe5 {[%clk 0:00:16]} 61. f7 {[%clk 0:00:03]}  Rf4 {[%clk 0:00:16]} 62. Kg6 {[%clk 0:00:04]}  c4 {[%clk 0:00:16]} 63. Kg7 {[%clk 0:00:04]}  c3 {[%clk 0:00:15]} 64. Kg8 {[%clk 0:00:05]}  Rxf7 {[%clk 0:00:15]} 65. Kxf7 {[%clk 0:00:05]}  c2 {[%clk 0:00:16]} 66. Ke7 {[%clk 0:00:06]}  c1=Q {[%clk 0:00:16]} 67. Kd7 {[%clk 0:00:07]}  Qc5 {[%clk 0:00:16]} 68. Ke8 {[%clk 0:00:07]}  Qc7 {[%clk 0:00:15]} 69. Kf8 {[%clk 0:00:07]}  Kf6 {[%clk 0:00:15]} 70. Kg8 {[%clk 0:00:08]}  Qg7# {[%clk 0:00:15]} 0-1


[Site "https://www.chess.com"]

[Event "Titled Tuesday Blitz January 18 2022"]
[White "Chernomordik, Pavel"]
[Black "Artemenko, Oleg"]
[WhiteFideId "2804530"]
[BlackFideId "14201798"]
[WhiteElo "2249"]
[BlackElo "2287"]
[Result "1-0"]
[Round "07"]
[TimeControl "180+1"]
[Date "2022.01.18"]
[WhiteClock "0:00:03"]
[BlackClock "0:00:12"]

1. e4 {[%clk 0:03:00]}  e6 {[%clk 0:03:00]} 2. Nc3 {[%clk 0:02:59]}  d5 {[%clk 0:03:01]} 3. d4 {[%clk 0:02:58]}  Nf6 {[%clk 0:03:01]} 4. Bg5 {[%clk 0:02:57]}  Bb4 {[%clk 0:03:01]} 5. e5 {[%clk 0:02:57]}  h6 {[%clk 0:03:00]} 6. Bh4 {[%clk 0:02:57]}  g5 {[%clk 0:02:57]} 7. Bg3 {[%clk 0:02:57]}  Ne4 {[%clk 0:02:56]} 8. Ne2 {[%clk 0:02:57]}  c5 {[%clk 0:02:55]} 9. a3 {[%clk 0:02:56]}  Bxc3+ {[%clk 0:02:55]} 10. Nxc3 {[%clk 0:02:56]}  Qa5 {[%clk 0:02:55]} 11. dxc5 {[%clk 0:02:47]}  Nc6 {[%clk 0:02:44]} 12. Qd3 {[%clk 0:02:10]}  a6 {[%clk 0:02:09]} 13. f3 {[%clk 0:02:02]}  Nxc5 {[%clk 0:02:07]} 14. Qd2 {[%clk 0:01:59]}  Bd7 {[%clk 0:01:51]} 15. Be2 {[%clk 0:01:56]}  O-O-O {[%clk 0:01:38]} 16. O-O {[%clk 0:01:53]}  d4 {[%clk 0:01:28]} 17. Nb1 {[%clk 0:01:41]}  Qxd2 {[%clk 0:01:08]} 18. Nxd2 {[%clk 0:01:37]}  h5 {[%clk 0:01:08]} 19. Nc4 {[%clk 0:01:35]}  h4 {[%clk 0:01:07]} 20. Bf2 {[%clk 0:01:32]}  Kc7 {[%clk 0:01:05]} 21. Rfd1 {[%clk 0:01:25]}  Bc8 {[%clk 0:01:00]} 22. c3 {[%clk 0:01:12]}  b5 {[%clk 0:00:53]} 23. Nd6 {[%clk 0:01:06]}  Nb3 {[%clk 0:00:33]} 24. Nxf7 {[%clk 0:00:57]}  Nxa1 {[%clk 0:00:32]} 25. Nxh8 {[%clk 0:00:52]}  dxc3 {[%clk 0:00:25]} 26. Rxd8 {[%clk 0:00:41]}  Kxd8 {[%clk 0:00:15]} 27. bxc3 {[%clk 0:00:39]}  Nxe5 {[%clk 0:00:13]} 28. Bd4 {[%clk 0:00:36]}  Nc4 {[%clk 0:00:12]} 29. Bxc4 {[%clk 0:00:33]}  bxc4 {[%clk 0:00:13]} 30. Nf7+ {[%clk 0:00:33]}  Ke8 {[%clk 0:00:13]} 31. Nxg5 {[%clk 0:00:34]}  Nc2 {[%clk 0:00:13]} 32. Bc5 {[%clk 0:00:33]}  Kd7 {[%clk 0:00:13]} 33. Ne4 {[%clk 0:00:31]}  Kc6 {[%clk 0:00:13]} 34. Kf2 {[%clk 0:00:31]}  e5 {[%clk 0:00:13]} 35. Be7 {[%clk 0:00:29]}  Bf5 {[%clk 0:00:12]} 36. a4 {[%clk 0:00:29]}  h3 {[%clk 0:00:12]} 37. g4 {[%clk 0:00:28]}  Bg6 {[%clk 0:00:13]} 38. Ng5 {[%clk 0:00:22]}  Kd7 {[%clk 0:00:12]} 39. Bf8 {[%clk 0:00:20]}  Na1 {[%clk 0:00:11]} 40. Nxh3 {[%clk 0:00:19]}  Nb3 {[%clk 0:00:12]} 41. f4 {[%clk 0:00:17]}  exf4 {[%clk 0:00:10]} 42. Nxf4 {[%clk 0:00:16]}  Bb1 {[%clk 0:00:11]} 43. h4 {[%clk 0:00:16]}  Nc1 {[%clk 0:00:10]} 44. h5 {[%clk 0:00:15]}  Ke8 {[%clk 0:00:11]} 45. Bc5 {[%clk 0:00:14]}  Na2 {[%clk 0:00:11]} 46. Bd4 {[%clk 0:00:14]}  Nc1 {[%clk 0:00:11]} 47. Ke3 {[%clk 0:00:13]}  Kd7 {[%clk 0:00:09]} 48. g5 {[%clk 0:00:13]}  Ke7 {[%clk 0:00:09]} 49. g6 {[%clk 0:00:12]}  Kf8 {[%clk 0:00:09]} 50. h6 {[%clk 0:00:10]}  Bxg6 {[%clk 0:00:09]} 51. Nxg6+ {[%clk 0:00:10]}  Kg8 {[%clk 0:00:10]} 52. Nf4 {[%clk 0:00:07]}  Kh7 {[%clk 0:00:10]} 53. Bg7 {[%clk 0:00:07]}  Nb3 {[%clk 0:00:11]} 54. Nd5 {[%clk 0:00:06]}  Nc5 {[%clk 0:00:11]} 55. Nf6+ {[%clk 0:00:06]}  Kg6 {[%clk 0:00:12]} 56. Kd4 {[%clk 0:00:05]}  Nxa4 {[%clk 0:00:11]} 57. Kxc4 {[%clk 0:00:05]}  Nb6+ {[%clk 0:00:12]} 58. Kc5 {[%clk 0:00:05]}  Na4+ {[%clk 0:00:12]} 59. Kb4 {[%clk 0:00:05]}  Nb6 {[%clk 0:00:13]} 60. Bf8 {[%clk 0:00:04]}  Nc8 {[%clk 0:00:09]} 61. h7 {[%clk 0:00:04]}  a5+ {[%clk 0:00:09]} 62. Kxa5 {[%clk 0:00:04]}  Na7 {[%clk 0:00:07]} 63. h8=Q {[%clk 0:00:04]}  Nc6+ {[%clk 0:00:08]} 64. Kb6 {[%clk 0:00:04]}  Ne5 {[%clk 0:00:08]} 65. Qg7+ {[%clk 0:00:04]}  Kf5 {[%clk 0:00:09]} 66. Ne8 {[%clk 0:00:04]}  Nc4+ {[%clk 0:00:10]} 67. Kc5 {[%clk 0:00:04]}  Ne3 {[%clk 0:00:11]} 68. Nd6+ {[%clk 0:00:04]}  Kf4 {[%clk 0:00:11]} 69. Qh6+ {[%clk 0:00:04]}  Kf3 {[%clk 0:00:12]} 70. Qh3+ {[%clk 0:00:03]}  Ke2 {[%clk 0:00:12]} 71. Bh6 {[%clk 0:00:04]}  Nc2 {[%clk 0:00:12]} 72. Ne4 {[%clk 0:00:04]}  Kd1 {[%clk 0:00:12]} 73. Qg2 {[%clk 0:00:03]}  Ne1 {[%clk 0:00:12]} 74. Qd2# {[%clk 0:00:03]} 1-0


[Site "https://www.chess.com"]

[Event "Titled Tuesday Blitz January 18 2022"]
[White "Czopor, Maciej"]
[Black "Santos Flores, Alberto"]
[WhiteFideId "21805431"]
[BlackFideId "3601234"]
[WhiteElo "1999"]
[BlackElo "2293"]
[Result "1/2-1/2"]
[Round "07"]
[TimeControl "180+1"]
[Date "2022.01.18"]
[WhiteClock "0:00:07"]
[BlackClock "0:00:03"]

1. b3 {[%clk 0:03:00]}  d5 {[%clk 0:02:52]} 2. Nf3 {[%clk 0:03:00]}  Nf6 {[%clk 0:02:50]} 3. c4 {[%clk 0:03:00]}  c6 {[%clk 0:02:49]} 4. Bb2 {[%clk 0:02:59]}  Bf5 {[%clk 0:02:47]} 5. g3 {[%clk 0:02:57]}  Nbd7 {[%clk 0:02:47]} 6. Bg2 {[%clk 0:02:56]}  e6 {[%clk 0:02:00]} 7. O-O {[%clk 0:02:56]}  h6 {[%clk 0:01:59]} 8. d3 {[%clk 0:02:56]}  Be7 {[%clk 0:01:58]} 9. Nbd2 {[%clk 0:02:57]}  O-O {[%clk 0:01:58]} 10. a3 {[%clk 0:02:57]}  a5 {[%clk 0:01:58]} 11. Ra2 {[%clk 0:02:58]}  Bh7 {[%clk 0:01:58]} 12. Qa1 {[%clk 0:02:58]}  b5 {[%clk 0:01:58]} 13. Rc1 {[%clk 0:02:55]}  Qb6 {[%clk 0:01:57]} 14. Ne5 {[%clk 0:02:46]}  Nxe5 {[%clk 0:01:52]} 15. Bxe5 {[%clk 0:02:47]}  Rfc8 {[%clk 0:01:44]} 16. Rac2 {[%clk 0:02:42]}  Qb7 {[%clk 0:01:43]} 17. e4 {[%clk 0:02:31]}  dxc4 {[%clk 0:01:23]} 18. dxc4 {[%clk 0:02:23]}  b4 {[%clk 0:01:18]} 19. c5 {[%clk 0:01:44]}  Ne8 {[%clk 0:01:13]} 20. Nc4 {[%clk 0:01:36]}  Bxc5 {[%clk 0:01:07]} 21. a4 {[%clk 0:01:10]}  Bf8 {[%clk 0:01:02]} 22. h4 {[%clk 0:01:01]}  Rd8 {[%clk 0:00:54]} 23. Ne3 {[%clk 0:00:57]}  Rac8 {[%clk 0:00:49]} 24. h5 {[%clk 0:00:46]}  c5 {[%clk 0:00:46]} 25. Nc4 {[%clk 0:00:39]}  Bxe4 {[%clk 0:00:44]} 26. Nxa5 {[%clk 0:00:33]}  Qa8 {[%clk 0:00:43]} 27. Bxe4 {[%clk 0:00:33]}  Qxe4 {[%clk 0:00:44]} 28. Nc4 {[%clk 0:00:31]}  Qf3 {[%clk 0:00:36]} 29. a5 {[%clk 0:00:28]}  Rd3 {[%clk 0:00:31]} 30. a6 {[%clk 0:00:26]}  Rcd8 {[%clk 0:00:30]} 31. Ne3 {[%clk 0:00:08]}  Rxe3 {[%clk 0:00:10]} 32. fxe3 {[%clk 0:00:09]}  Qxe3+ {[%clk 0:00:10]} 33. Kh2 {[%clk 0:00:10]}  Rd2+ {[%clk 0:00:05]} 34. Rxd2 {[%clk 0:00:10]}  Qxd2+ {[%clk 0:00:06]} 35. Kh3 {[%clk 0:00:11]}  Qe2 {[%clk 0:00:04]} 36. a7 {[%clk 0:00:06]}  Qxh5+ {[%clk 0:00:03]} 37. Kg2 {[%clk 0:00:06]}  Qe2+ {[%clk 0:00:04]} 38. Kg1 {[%clk 0:00:06]}  Qe3+ {[%clk 0:00:04]} 39. Kf1 {[%clk 0:00:04]}  Qf3+ {[%clk 0:00:04]} 40. Kg1 {[%clk 0:00:04]}  Qe3+ {[%clk 0:00:04]} 41. Kh2 {[%clk 0:00:05]}  Qe2+ {[%clk 0:00:04]} 42. Kh3 {[%clk 0:00:05]}  Qh5+ {[%clk 0:00:03]} 43. Kg2 {[%clk 0:00:06]}  Qe2+ {[%clk 0:00:03]} 44. Kg1 {[%clk 0:00:07]}  Qe3+ {[%clk 0:00:03]} 1/2-1/2


[Site "https://www.chess.com"]

[Event "Titled Tuesday Blitz January 18 2022"]
[White "Djordjevic, Vuk"]
[Black "Weishaeutel, Moritz"]
[WhiteFideId "902098"]
[BlackFideId "12967300"]
[WhiteElo "2463"]
[BlackElo "2002"]
[Result "0-1"]
[Round "07"]
[TimeControl "180+1"]
[Date "2022.01.18"]
[WhiteClock "0:00:02"]
[BlackClock "0:00:07"]

1. e4 {[%clk 0:03:00]}  e5 {[%clk 0:02:57]} 2. f4 {[%clk 0:03:00]}  d5 {[%clk 0:02:56]} 3. d4 {[%clk 0:02:58]}  dxe4 {[%clk 0:02:49]} 4. fxe5 {[%clk 0:02:53]}  Nc6 {[%clk 0:02:46]} 5. Be3 {[%clk 0:02:52]}  f6 {[%clk 0:02:35]} 6. Bb5 {[%clk 0:02:44]}  Bd7 {[%clk 0:02:18]} 7. Nc3 {[%clk 0:02:35]}  Bb4 {[%clk 0:02:00]} 8. Qe2 {[%clk 0:01:24]}  Qe7 {[%clk 0:01:23]} 9. Nh3 {[%clk 0:00:56]}  fxe5 {[%clk 0:01:05]} 10. O-O {[%clk 0:00:45]}  Bxc3 {[%clk 0:00:48]} 11. bxc3 {[%clk 0:00:43]}  exd4 {[%clk 0:00:37]} 12. cxd4 {[%clk 0:00:41]}  O-O-O {[%clk 0:00:37]} 13. d5 {[%clk 0:00:30]}  Ne5 {[%clk 0:00:34]} 14. Bxa7 {[%clk 0:00:30]}  Bxh3 {[%clk 0:00:30]} 15. gxh3 {[%clk 0:00:26]}  Nf3+ {[%clk 0:00:30]} 16. Kh1 {[%clk 0:00:24]}  Rxd5 {[%clk 0:00:26]} 17. c4 {[%clk 0:00:22]}  Rd2 {[%clk 0:00:25]} 18. Qxd2 {[%clk 0:00:08]}  Nxd2 {[%clk 0:00:26]} 19. Rf2 {[%clk 0:00:08]}  Nf3 {[%clk 0:00:26]} 20. Rd1 {[%clk 0:00:06]}  Nf6 {[%clk 0:00:26]} 21. c5 {[%clk 0:00:03]}  Rd8 {[%clk 0:00:24]} 22. Rdf1 {[%clk 0:00:03]}  Rd2 {[%clk 0:00:21]} 23. c6 {[%clk 0:00:03]}  Rxf2 {[%clk 0:00:21]} 24. Rxf2 {[%clk 0:00:04]}  Qb4 {[%clk 0:00:18]} 25. a4 {[%clk 0:00:04]}  Qe1+ {[%clk 0:00:10]} 26. Rf1 {[%clk 0:00:04]}  Qd2 {[%clk 0:00:10]} 27. Rf2 {[%clk 0:00:04]}  Qc1+ {[%clk 0:00:07]} 28. Rf1 {[%clk 0:00:04]}  Qf4 {[%clk 0:00:07]} 29. Rf2 {[%clk 0:00:04]}  e3 {[%clk 0:00:07]} 30. Rg2 {[%clk 0:00:04]}  Ne4 {[%clk 0:00:05]} 31. a5 {[%clk 0:00:01]}  Nf2+ {[%clk 0:00:05]} 32. Rxf2 {[%clk 0:00:02]}  exf2 {[%clk 0:00:06]} 33. Kg2 {[%clk 0:00:02]}  Nh4+ {[%clk 0:00:05]} 34. Kf1 {[%clk 0:00:02]}  Qxh2 {[%clk 0:00:06]} 35. Bxf2 {[%clk 0:00:02]}  Qg2+ {[%clk 0:00:06]} 36. Ke2 {[%clk 0:00:02]}  Nf5 {[%clk 0:00:06]} 37. Bd3 {[%clk 0:00:03]}  Nd4+ {[%clk 0:00:06]} 38. Ke1 {[%clk 0:00:03]}  Nxc6 {[%clk 0:00:07]} 39. Bf5+ {[%clk 0:00:03]}  Kb8 {[%clk 0:00:07]} 40. Bg4 {[%clk 0:00:03]}  Qe4+ {[%clk 0:00:07]} 41. Kf1 {[%clk 0:00:03]}  Nxa5 {[%clk 0:00:07]} 42. Be2 {[%clk 0:00:01]}  Nc4 {[%clk 0:00:07]} 43. Bg4 {[%clk 0:00:01]}  Ne3+ {[%clk 0:00:06]} 44. Bxe3 {[%clk 0:00:02]}  Qxe3 {[%clk 0:00:07]} 0-1


[Site "https://www.chess.com"]